[Event "Early Titled Tuesday Blitz | February 8 2022"]
[White "Shyaamnikhil P"]
[Black "Terletsky, Oleg"]
[WhiteFideId "5024218"]
[BlackFideId "14116774"]
[WhiteElo "2292"]
[BlackElo "2050"]
[Result "1-0"]
[Round "01"]
[TimeControl "180+1"]
[Date "2022.02.08"]
[WhiteClock "0:01:01"]
[BlackClock "0:00:06"]

1. d4 {[%clk 0:03:00]}  Nf6 {[%clk 0:02:59]} 2. Nf3 {[%clk 0:02:58]}  g6 {[%clk 0:02:57]} 3. g3 {[%clk 0:02:57]}  Bg7 {[%clk 0:02:57]} 4. Bg2 {[%clk 0:02:58]}  O-O {[%clk 0:02:57]} 5. O-O {[%clk 0:02:58]}  d6 {[%clk 0:02:57]} 6. Re1 {[%clk 0:02:58]}  Nbd7 {[%clk 0:02:48]} 7. e4 {[%clk 0:02:55]}  e5 {[%clk 0:02:47]} 8. c3 {[%clk 0:02:55]}  Re8 {[%clk 0:02:44]} 9. Nbd2 {[%clk 0:02:54]}  b6 {[%clk 0:02:13]} 10. a4 {[%clk 0:02:52]}  a6 {[%clk 0:02:05]} 11. a5 {[%clk 0:02:40]}  b5 {[%clk 0:02:04]} 12. d5 {[%clk 0:02:40]}  Bb7 {[%clk 0:02:03]} 13. c4 {[%clk 0:02:36]}  c6 {[%clk 0:01:59]} 14. b3 {[%clk 0:02:32]}  Nc5 {[%clk 0:01:46]} 15. Qc2 {[%clk 0:02:23]}  bxc4 {[%clk 0:01:35]} 16. bxc4 {[%clk 0:02:21]}  cxd5 {[%clk 0:01:22]} 17. cxd5 {[%clk 0:02:22]}  Rc8 {[%clk 0:01:22]} 18. Qb1 {[%clk 0:02:22]}  Rb8 {[%clk 0:00:46]} 19. Qa2 {[%clk 0:01:43]}  Nd3 {[%clk 0:00:38]} 20. Re3 {[%clk 0:01:43]}  Nxc1 {[%clk 0:00:19]} 21. Rxc1 {[%clk 0:01:44]}  Qe7 {[%clk 0:00:16]} 22. Rb3 {[%clk 0:01:26]}  Rec8 {[%clk 0:00:15]} 23. Rcb1 {[%clk 0:01:26]}  Qc7 {[%clk 0:00:14]} 24. Qb2 {[%clk 0:01:25]}  Nd7 {[%clk 0:00:13]} 25. Rxb7 {[%clk 0:01:24]}  Rxb7 {[%clk 0:00:10]} 26. Qxb7 {[%clk 0:01:25]}  Qxb7 {[%clk 0:00:10]} 27. Rxb7 {[%clk 0:01:25]}  Nc5 {[%clk 0:00:10]} 28. Rb6 {[%clk 0:01:23]}  Bf8 {[%clk 0:00:10]} 29. Bf1 {[%clk 0:01:18]}  f5 {[%clk 0:00:09]} 30. exf5 {[%clk 0:01:17]}  gxf5 {[%clk 0:00:10]} 31. Ng5 {[%clk 0:01:15]}  e4 {[%clk 0:00:09]} 32. Nc4 {[%clk 0:01:12]}  Re8 {[%clk 0:00:07]} 33. Nxd6 {[%clk 0:01:10]}  Re5 {[%clk 0:00:07]} 34. Rc6 {[%clk 0:01:02]}  Rxd5 {[%clk 0:00:06]} 35. Bc4 {[%clk 0:01:01]} 1-0


[Site "https://www.chess.com"]

[Event "Early Titled Tuesday Blitz | February 8 2022"]
[White "Silich, Yahor"]
[Black "Deac, Bogdan-Daniel"]
[WhiteFideId "13513656"]
[BlackFideId "1226380"]
[WhiteElo "2101"]
[BlackElo "2646"]
[Result "0-1"]
[Round "01"]
[TimeControl "180+1"]
[Date "2022.02.08"]
[WhiteClock "0:00:02"]
[BlackClock "0:00:32"]

1. e4 {[%clk 0:02:59]}  c5 {[%clk 0:02:59]} 2. Nf3 {[%clk 0:02:58]}  Nc6 {[%clk 0:03:00]} 3. Bb5 {[%clk 0:02:59]}  g6 {[%clk 0:02:58]} 4. O-O {[%clk 0:02:58]}  Bg7 {[%clk 0:02:58]} 5. c3 {[%clk 0:02:59]}  a6 {[%clk 0:02:58]} 6. Bxc6 {[%clk 0:02:58]}  dxc6 {[%clk 0:02:59]} 7. h3 {[%clk 0:02:50]}  Nf6 {[%clk 0:02:58]} 8. Re1 {[%clk 0:02:46]}  c4 {[%clk 0:02:52]} 9. b3 {[%clk 0:02:42]}  cxb3 {[%clk 0:02:42]} 10. axb3 {[%clk 0:02:42]}  O-O {[%clk 0:02:42]} 11. d4 {[%clk 0:02:42]}  Nd7 {[%clk 0:02:39]} 12. Bf4 {[%clk 0:02:39]}  c5 {[%clk 0:02:37]} 13. e5 {[%clk 0:02:21]}  cxd4 {[%clk 0:02:33]} 14. cxd4 {[%clk 0:02:21]}  Nb6 {[%clk 0:02:33]} 15. Nc3 {[%clk 0:02:22]}  Nd5 {[%clk 0:02:21]} 16. Qd2 {[%clk 0:02:06]}  Be6 {[%clk 0:02:09]} 17. Rab1 {[%clk 0:01:25]}  Rc8 {[%clk 0:02:00]} 18. Ne4 {[%clk 0:01:24]}  Bf5 {[%clk 0:01:55]} 19. Rbd1 {[%clk 0:01:21]}  Bxe4 {[%clk 0:01:53]} 20. Rxe4 {[%clk 0:01:17]}  Nc3 {[%clk 0:01:53]} 21. Ree1 {[%clk 0:01:17]}  Nxd1 {[%clk 0:01:52]} 22. Rxd1 {[%clk 0:01:18]}  Qd5 {[%clk 0:01:52]} 23. Qd3 {[%clk 0:01:10]}  Rc6 {[%clk 0:01:47]} 24. Ng5 {[%clk 0:01:05]}  f6 {[%clk 0:01:37]} 25. exf6 {[%clk 0:00:56]}  Rcxf6 {[%clk 0:01:36]} 26. Be3 {[%clk 0:00:56]}  Rb6 {[%clk 0:01:24]} 27. Ne4 {[%clk 0:00:43]}  Rxb3 {[%clk 0:01:21]} 28. Qc2 {[%clk 0:00:43]}  Rb4 {[%clk 0:01:15]} 29. Nc3 {[%clk 0:00:14]}  Qb3 {[%clk 0:01:10]} 30. Qd2 {[%clk 0:00:12]}  Rc4 {[%clk 0:01:10]} 31. Nd5 {[%clk 0:00:09]}  Rc2 {[%clk 0:01:00]} 32. Qa5 {[%clk 0:00:09]}  Rcxf2 {[%clk 0:00:52]} 33. Re1 {[%clk 0:00:06]}  R2f7 {[%clk 0:00:40]} 34. Kh2 {[%clk 0:00:02]}  e6 {[%clk 0:00:37]} 35. Nc3 {[%clk 0:00:03]}  Qc4 {[%clk 0:00:33]} 36. Ne4 {[%clk 0:00:02]}  Qc7+ {[%clk 0:00:32]} 37. Qxc7 {[%clk 0:00:02]}  Rxc7 {[%clk 0:00:32]} 0-1


[Site "https://www.chess.com"]

[Event "Early Titled Tuesday Blitz | February 8 2022"]
[White "Sokolovsky, Yahli"]
[Black "Kiseleva, Arina"]
[WhiteFideId "2820242"]
[BlackFideId "4164989"]
[WhiteElo "1770"]
[BlackElo "1866"]
[Result "1-0"]
[Round "01"]
[TimeControl "180+1"]
[Date "2022.02.08"]
[WhiteClock "0:00:04"]
[BlackClock "0:00:04"]

1. b3 {[%clk 0:03:00]}  Nf6 {[%clk 0:02:51]} 2. Bb2 {[%clk 0:03:01]}  d6 {[%clk 0:02:46]} 3. d4 {[%clk 0:02:59]}  g6 {[%clk 0:02:45]} 4. g3 {[%clk 0:02:56]}  Bg7 {[%clk 0:02:45]} 5. Bg2 {[%clk 0:02:56]}  c6 {[%clk 0:02:43]} 6. Nf3 {[%clk 0:02:50]}  O-O {[%clk 0:02:43]} 7. O-O {[%clk 0:02:49]}  Bg4 {[%clk 0:02:39]} 8. h3 {[%clk 0:02:49]}  Bxf3 {[%clk 0:02:39]} 9. Bxf3 {[%clk 0:02:49]}  Nbd7 {[%clk 0:02:37]} 10. Bg2 {[%clk 0:02:45]}  Qc7 {[%clk 0:02:27]} 11. Nd2 {[%clk 0:02:37]}  e5 {[%clk 0:02:19]} 12. e4 {[%clk 0:02:36]}  exd4 {[%clk 0:02:09]} 13. Bxd4 {[%clk 0:02:37]}  Rfe8 {[%clk 0:02:09]} 14. Re1 {[%clk 0:02:35]}  c5 {[%clk 0:01:56]} 15. Bb2 {[%clk 0:02:34]}  Ne5 {[%clk 0:01:56]} 16. f4 {[%clk 0:02:21]}  Nc6 {[%clk 0:01:56]} 17. Nc4 {[%clk 0:02:22]}  Rad8 {[%clk 0:01:54]} 18. Qf3 {[%clk 0:02:13]}  Nb4 {[%clk 0:01:20]} 19. Qf2 {[%clk 0:02:08]}  b5 {[%clk 0:01:05]} 20. Ne3 {[%clk 0:01:05]}  Nxe4 {[%clk 0:00:59]} 21. Bxe4 {[%clk 0:01:05]}  Rxe4 {[%clk 0:00:59]} 22. Bxg7 {[%clk 0:01:04]}  Kxg7 {[%clk 0:00:58]} 23. a3 {[%clk 0:01:00]}  Nc6 {[%clk 0:00:53]} 24. Nd5 {[%clk 0:01:01]}  Rxe1+ {[%clk 0:00:51]} 25. Rxe1 {[%clk 0:01:02]}  Qd7 {[%clk 0:00:50]} 26. Qf1 {[%clk 0:00:38]}  Nd4 {[%clk 0:00:38]} 27. c3 {[%clk 0:00:32]}  Nxb3 {[%clk 0:00:36]} 28. Re7 {[%clk 0:00:30]}  Qf5 {[%clk 0:00:35]} 29. Nc7 {[%clk 0:00:30]}  c4 {[%clk 0:00:22]} 30. Ne6+ {[%clk 0:00:28]}  Kf6 {[%clk 0:00:20]} 31. Nd4 {[%clk 0:00:12]}  Nxd4 {[%clk 0:00:13]} 32. Rxa7 {[%clk 0:00:06]}  Nc6 {[%clk 0:00:12]} 33. Ra6 {[%clk 0:00:06]}  Ne7 {[%clk 0:00:12]} 34. Qd1 {[%clk 0:00:05]}  Qd5 {[%clk 0:00:10]} 35. Qe1 {[%clk 0:00:04]}  Qe6 {[%clk 0:00:09]} 36. Qf2 {[%clk 0:00:04]}  Nf5 {[%clk 0:00:08]} 37. g4 {[%clk 0:00:04]}  Ne3 {[%clk 0:00:07]} 38. Ra7 {[%clk 0:00:04]}  Nd5 {[%clk 0:00:07]} 39. Qd4+ {[%clk 0:00:04]}  Qe5 {[%clk 0:00:04]} 40. fxe5+ {[%clk 0:00:05]}  dxe5 {[%clk 0:00:05]} 41. Qf2+ {[%clk 0:00:06]}  Ke6 {[%clk 0:00:05]} 42. Qc5 {[%clk 0:00:05]}  Nf4 {[%clk 0:00:04]} 43. Qe7+ {[%clk 0:00:04]} 1-0


[Site "https://www.chess.com"]

[Event "Early Titled Tuesday Blitz | February 8 2022"]
[White "Sorokin, Aleksey"]
[Black "Ljukin, Sergei"]
[WhiteFideId "24176460"]
[BlackFideId "14102200"]
[WhiteElo "2476"]
[BlackElo "2312"]
[Result "1-0"]
[Round "01"]
[TimeControl "180+1"]
[Date "2022.02.08"]
[WhiteClock "0:02:02"]
[BlackClock "0:02:03"]

1. d4 {[%clk 0:02:27]}  d5 {[%clk 0:02:59]} 2. c4 {[%clk 0:02:27]}  c6 {[%clk 0:02:59]} 3. Nf3 {[%clk 0:02:25]}  Nf6 {[%clk 0:02:58]} 4. e3 {[%clk 0:02:25]}  e6 {[%clk 0:02:58]} 5. Qc2 {[%clk 0:02:24]}  Nbd7 {[%clk 0:02:50]} 6. b3 {[%clk 0:02:23]}  Bb4+ {[%clk 0:02:40]} 7. Nbd2 {[%clk 0:02:23]}  O-O {[%clk 0:02:33]} 8. Bd3 {[%clk 0:02:23]}  a6 {[%clk 0:02:32]} 9. O-O {[%clk 0:02:22]}  b5 {[%clk 0:02:32]} 10. Ne5 {[%clk 0:02:17]}  Bb7 {[%clk 0:02:26]} 11. f4 {[%clk 0:02:16]}  bxc4 {[%clk 0:02:21]} 12. bxc4 {[%clk 0:02:16]}  c5 {[%clk 0:02:21]} 13. Rb1 {[%clk 0:02:16]}  Bxd2 {[%clk 0:02:15]} 14. Bxd2 {[%clk 0:02:14]}  cxd4 {[%clk 0:02:15]} 15. Rxb7 {[%clk 0:02:08]}  Nc5 {[%clk 0:02:08]} 16. Rbb1 {[%clk 0:02:02]}  dxe3 {[%clk 0:02:03]} 17. Bxe3 {[%clk 0:02:02]} 1-0


[Site "https://www.chess.com"]

[Event "Early Titled Tuesday Blitz | February 8 2022"]
[White "Sovetbekova, Nurai"]
[Black "Jakubowski, Krzysztof"]
[WhiteFideId "13801910"]
[BlackFideId "1112848"]
[WhiteElo "1545"]
[BlackElo "2365"]
[Result "0-1"]
[Round "01"]
[TimeControl "180+1"]
[Date "2022.02.08"]
[WhiteClock "0:00:02"]
[BlackClock "0:00:32"]

1. d4 {[%clk 0:03:00]}  Nf6 {[%clk 0:02:58]} 2. c4 {[%clk 0:03:00]}  e6 {[%clk 0:02:57]} 3. Nf3 {[%clk 0:02:59]}  b6 {[%clk 0:02:56]} 4. g3 {[%clk 0:02:59]}  Ba6 {[%clk 0:02:55]} 5. Qc2 {[%clk 0:02:56]}  c5 {[%clk 0:02:51]} 6. Bg2 {[%clk 0:02:45]}  Nc6 {[%clk 0:02:46]} 7. dxc5 {[%clk 0:02:23]}  bxc5 {[%clk 0:02:41]} 8. O-O {[%clk 0:02:20]}  Be7 {[%clk 0:02:36]} 9. b3 {[%clk 0:01:09]}  O-O {[%clk 0:02:32]} 10. Bb2 {[%clk 0:01:08]}  d5 {[%clk 0:02:28]} 11. cxd5 {[%clk 0:00:48]}  exd5 {[%clk 0:02:29]} 12. Nc3 {[%clk 0:00:45]}  Nb4 {[%clk 0:02:21]} 13. Qd2 {[%clk 0:00:38]}  Re8 {[%clk 0:02:04]} 14. Rfd1 {[%clk 0:00:34]}  d4 {[%clk 0:01:59]} 15. Na4 {[%clk 0:00:32]}  Ne4 {[%clk 0:01:54]} 16. Qf4 {[%clk 0:00:28]}  Bd6 {[%clk 0:01:52]} 17. Qg4 {[%clk 0:00:23]}  Bxe2 {[%clk 0:01:49]} 18. Re1 {[%clk 0:00:21]}  Nf6 {[%clk 0:01:48]} 19. Qf5 {[%clk 0:00:14]}  g6 {[%clk 0:01:38]} 20. Qg5 {[%clk 0:00:14]}  Nc2 {[%clk 0:01:33]} 21. Rac1 {[%clk 0:00:10]}  Nxe1 {[%clk 0:01:31]} 22. Nxe1 {[%clk 0:00:11]}  Rc8 {[%clk 0:01:27]} 23. Bh3 {[%clk 0:00:11]}  Rc7 {[%clk 0:01:26]} 24. Qd2 {[%clk 0:00:08]}  Ba6 {[%clk 0:01:23]} 25. Nd3 {[%clk 0:00:07]}  Ne4 {[%clk 0:01:23]} 26. Qd1 {[%clk 0:00:06]}  Rce7 {[%clk 0:01:19]} 27. Bf1 {[%clk 0:00:02]}  Bb7 {[%clk 0:01:08]} 28. Naxc5 {[%clk 0:00:02]}  Nxc5 {[%clk 0:01:07]} 29. Nxc5 {[%clk 0:00:03]}  Bxc5 {[%clk 0:01:07]} 30. Rxc5 {[%clk 0:00:04]}  Re1 {[%clk 0:01:07]} 31. Qd3 {[%clk 0:00:04]}  Qf6 {[%clk 0:00:38]} 32. Bxd4 {[%clk 0:00:02]}  Qa6 {[%clk 0:00:32]} 33. Qxa6 {[%clk 0:00:02]}  Bxa6 {[%clk 0:00:32]} 0-1


[Site "https://www.chess.com"]

[Event "Early Titled Tuesday Blitz | February 8 2022"]
[White "Srihari L R"]
[Black "Kanyamarala, Trisha"]
[WhiteFideId "46617116"]
[BlackFideId "45004722"]
[WhiteElo "2121"]
[BlackElo "2002"]
[Result "1-0"]
[Round "01"]
[TimeControl "180+1"]
[Date "2022.02.08"]
[WhiteClock "0:00:57"]
[BlackClock "0:00:14"]

1. c4 {[%clk 0:02:58]}  e6 {[%clk 0:02:58]} 2. Nc3 {[%clk 0:02:57]}  d5 {[%clk 0:02:56]} 3. d4 {[%clk 0:02:57]}  Nf6 {[%clk 0:02:55]} 4. Bg5 {[%clk 0:02:56]}  Bb4 {[%clk 0:02:54]} 5. e3 {[%clk 0:02:56]}  O-O {[%clk 0:02:49]} 6. Nf3 {[%clk 0:02:53]}  c5 {[%clk 0:02:43]} 7. a3 {[%clk 0:02:38]}  Bxc3+ {[%clk 0:02:35]} 8. bxc3 {[%clk 0:02:38]}  Nc6 {[%clk 0:02:33]} 9. cxd5 {[%clk 0:02:34]}  exd5 {[%clk 0:02:30]} 10. Bd3 {[%clk 0:02:23]}  Bg4 {[%clk 0:02:25]} 11. O-O {[%clk 0:02:21]}  c4 {[%clk 0:02:21]} 12. Be2 {[%clk 0:02:21]}  Qd6 {[%clk 0:02:16]} 13. Nd2 {[%clk 0:02:08]}  Bxe2 {[%clk 0:02:06]} 14. Qxe2 {[%clk 0:02:07]}  b5 {[%clk 0:02:00]} 15. Qf3 {[%clk 0:01:59]}  Nd7 {[%clk 0:01:39]} 16. e4 {[%clk 0:01:57]}  Nb6 {[%clk 0:01:34]} 17. e5 {[%clk 0:01:45]}  Qd7 {[%clk 0:01:20]} 18. Qg3 {[%clk 0:01:42]}  Kh8 {[%clk 0:01:16]} 19. f4 {[%clk 0:01:39]}  a5 {[%clk 0:01:14]} 20. f5 {[%clk 0:01:39]}  f6 {[%clk 0:01:11]} 21. e6 {[%clk 0:01:32]}  Qe7 {[%clk 0:01:08]} 22. Bf4 {[%clk 0:01:32]}  Nc8 {[%clk 0:00:57]} 23. Nf3 {[%clk 0:01:31]}  Ra7 {[%clk 0:00:50]} 24. Nh4 {[%clk 0:01:28]}  Rd8 {[%clk 0:00:26]} 25. Ng6+ {[%clk 0:01:08]}  hxg6 {[%clk 0:00:25]} 26. Qh3+ {[%clk 0:01:00]}  Kg8 {[%clk 0:00:25]} 27. fxg6 {[%clk 0:01:00]}  Qxe6 {[%clk 0:00:17]} 28. Qxe6+ {[%clk 0:00:59]}  Kf8 {[%clk 0:00:16]} 29. Bh6 {[%clk 0:00:58]}  gxh6 {[%clk 0:00:14]} 30. Rxf6+ {[%clk 0:00:57]} 1-0


[Site "https://www.chess.com"]

[Event "Early Titled Tuesday Blitz | February 8 2022"]
[White "Stefanov, Plamen"]
[Black "Khumalo, Keith"]
[WhiteFideId "2900980"]
[BlackFideId "14319470"]
[WhiteElo "2137"]
[BlackElo "1992"]
[Result "0-1"]
[Round "01"]
[TimeControl "180+1"]
[Date "2022.02.08"]
[WhiteClock "0:00:01"]
[BlackClock "0:01:00"]

1. e4 {[%clk 0:02:58]}  c5 {[%clk 0:02:57]} 2. Nf3 {[%clk 0:02:58]}  e6 {[%clk 0:02:57]} 3. c3 {[%clk 0:02:57]}  Qa5 {[%clk 0:02:56]} 4. Bd3 {[%clk 0:02:54]}  Nc6 {[%clk 0:02:56]} 5. O-O {[%clk 0:02:54]}  Nf6 {[%clk 0:02:56]} 6. Re1 {[%clk 0:02:53]}  d5 {[%clk 0:02:55]} 7. e5 {[%clk 0:02:51]}  Nd7 {[%clk 0:02:55]} 8. Bc2 {[%clk 0:02:50]}  c4 {[%clk 0:02:54]} 9. d4 {[%clk 0:02:50]}  cxd3 {[%clk 0:02:55]} 10. Qxd3 {[%clk 0:02:50]}  Be7 {[%clk 0:02:56]} 11. Nbd2 {[%clk 0:02:44]}  Qc7 {[%clk 0:02:55]} 12. Qe2 {[%clk 0:02:35]}  a5 {[%clk 0:02:53]} 13. Nf1 {[%clk 0:02:34]}  b6 {[%clk 0:02:53]} 14. Bf4 {[%clk 0:02:34]}  Ba6 {[%clk 0:02:53]} 15. Bd3 {[%clk 0:02:26]}  Bxd3 {[%clk 0:02:54]} 16. Qxd3 {[%clk 0:02:26]}  Nc5 {[%clk 0:02:54]} 17. Qd1 {[%clk 0:02:20]}  a4 {[%clk 0:02:52]} 18. Ng3 {[%clk 0:02:20]}  h5 {[%clk 0:02:45]} 19. h4 {[%clk 0:02:18]}  g6 {[%clk 0:02:39]} 20. Qe2 {[%clk 0:02:11]}  Qb7 {[%clk 0:02:37]} 21. Ng5 {[%clk 0:02:05]}  Qa6 {[%clk 0:02:34]} 22. Qf3 {[%clk 0:02:01]}  Ra7 {[%clk 0:02:27]} 23. Bd2 {[%clk 0:01:50]}  Bd8 {[%clk 0:02:26]} 24. b4 {[%clk 0:01:41]}  Nd3 {[%clk 0:02:15]} 25. Re3 {[%clk 0:01:25]}  Ndxe5 {[%clk 0:02:14]} 26. Qd1 {[%clk 0:01:17]}  Ng4 {[%clk 0:02:06]} 27. Re1 {[%clk 0:01:15]}  Qd3 {[%clk 0:01:56]} 28. Bf4 {[%clk 0:01:08]}  Qxd1 {[%clk 0:01:54]} 29. Raxd1 {[%clk 0:01:07]}  Bxg5 {[%clk 0:01:49]} 30. Bxg5 {[%clk 0:01:03]}  Kd7 {[%clk 0:01:48]} 31. Ne4 {[%clk 0:01:00]}  Kc7 {[%clk 0:01:41]} 32. Nf6 {[%clk 0:01:00]}  Nxf6 {[%clk 0:01:33]} 33. Bxf6 {[%clk 0:00:59]}  Re8 {[%clk 0:01:33]} 34. Rxd5 {[%clk 0:00:55]}  exd5 {[%clk 0:01:28]} 35. Rxe8 {[%clk 0:00:54]}  Kd6 {[%clk 0:01:27]} 36. b5 {[%clk 0:00:50]}  Na5 {[%clk 0:01:27]} 37. Rb8 {[%clk 0:00:42]}  Nc4 {[%clk 0:01:25]} 38. Bd4 {[%clk 0:00:39]}  Kc7 {[%clk 0:01:16]} 39. Rf8 {[%clk 0:00:38]}  Kd6 {[%clk 0:01:16]} 40. f4 {[%clk 0:00:38]}  Ra5 {[%clk 0:01:14]} 41. Rxf7 {[%clk 0:00:35]}  Rxb5 {[%clk 0:01:14]} 42. Rf6+ {[%clk 0:00:36]}  Kc7 {[%clk 0:01:14]} 43. Rxg6 {[%clk 0:00:36]}  Rb2 {[%clk 0:01:12]} 44. f5 {[%clk 0:00:35]}  Rxa2 {[%clk 0:01:07]} 45. f6 {[%clk 0:00:35]}  Ra1+ {[%clk 0:01:07]} 46. Kh2 {[%clk 0:00:35]}  Rf1 {[%clk 0:01:07]} 47. Rg7+ {[%clk 0:00:34]}  Kd6 {[%clk 0:01:07]} 48. f7 {[%clk 0:00:34]}  Ke7 {[%clk 0:01:06]} 49. Rg8 {[%clk 0:00:17]}  Rxf7 {[%clk 0:01:05]} 50. Ra8 {[%clk 0:00:17]}  b5 {[%clk 0:01:05]} 51. Ra7+ {[%clk 0:00:16]}  Ke6 {[%clk 0:01:06]} 52. Ra6+ {[%clk 0:00:17]}  Kf5 {[%clk 0:01:07]} 53. Ra8 {[%clk 0:00:16]}  Ke4 {[%clk 0:01:07]} 54. Rb8 {[%clk 0:00:15]}  a3 {[%clk 0:01:04]} 55. Ra8 {[%clk 0:00:14]}  b4 {[%clk 0:01:01]} 56. cxb4 {[%clk 0:00:11]}  Kxd4 {[%clk 0:01:01]} 57. b5 {[%clk 0:00:12]}  Rb7 {[%clk 0:01:00]} 58. b6 {[%clk 0:00:13]}  Rxb6 {[%clk 0:01:00]} 59. Rh8 {[%clk 0:00:09]}  Ra6 {[%clk 0:00:59]} 60. Rxh5 {[%clk 0:00:10]}  a2 {[%clk 0:01:00]} 61. Rg5 {[%clk 0:00:10]}  a1=Q {[%clk 0:01:01]} 62. Rg4+ {[%clk 0:00:11]}  Kc5 {[%clk 0:01:01]} 63. Rg8 {[%clk 0:00:05]}  Qe5+ {[%clk 0:01:02]} 64. g3 {[%clk 0:00:04]}  Ra2+ {[%clk 0:01:02]} 65. Kh3 {[%clk 0:00:05]}  Ne3 {[%clk 0:01:02]} 66. Rg4 {[%clk 0:00:02]}  Rh2+ {[%clk 0:00:59]} 67. Kxh2 {[%clk 0:00:01]}  Qb2+ {[%clk 0:01:00]} 0-1


[Site "https://www.chess.com"]

[Event "Early Titled Tuesday Blitz | February 8 2022"]
[White "Sychev, Klementy"]
[Black "Shtyka, Sergey"]
[WhiteFideId "4114060"]
[BlackFideId "4138465"]
[WhiteElo "2564"]
[BlackElo "2014"]
[Result "1/2-1/2"]
[Round "01"]
[TimeControl "180+1"]
[Date "2022.02.08"]
[WhiteClock "0:00:24"]
[BlackClock "0:00:12"]

1. e4 {[%clk 0:02:58]}  c5 {[%clk 0:02:59]} 2. Nf3 {[%clk 0:02:58]}  d6 {[%clk 0:02:56]} 3. d4 {[%clk 0:02:55]}  cxd4 {[%clk 0:02:56]} 4. Nxd4 {[%clk 0:02:55]}  Nf6 {[%clk 0:02:56]} 5. Nc3 {[%clk 0:02:56]}  g6 {[%clk 0:02:55]} 6. Be3 {[%clk 0:02:55]}  Bg7 {[%clk 0:02:55]} 7. f3 {[%clk 0:02:55]}  O-O {[%clk 0:02:55]} 8. Qd2 {[%clk 0:02:55]}  Nc6 {[%clk 0:02:55]} 9. g4 {[%clk 0:02:50]}  Be6 {[%clk 0:02:45]} 10. Nxe6 {[%clk 0:02:40]}  fxe6 {[%clk 0:02:44]} 11. O-O-O {[%clk 0:02:41]}  Ne5 {[%clk 0:02:38]} 12. Be2 {[%clk 0:02:40]}  Rc8 {[%clk 0:02:35]} 13. h4 {[%clk 0:02:39]}  Qa5 {[%clk 0:02:25]} 14. h5 {[%clk 0:02:34]}  Nc4 {[%clk 0:01:58]} 15. Bxc4 {[%clk 0:02:33]}  Rxc4 {[%clk 0:01:59]} 16. hxg6 {[%clk 0:02:33]}  hxg6 {[%clk 0:01:59]} 17. Bh6 {[%clk 0:02:30]}  Rfc8 {[%clk 0:01:20]} 18. Bxg7 {[%clk 0:02:27]}  Rxc3 {[%clk 0:01:13]} 19. bxc3 {[%clk 0:02:21]}  Kxg7 {[%clk 0:01:13]} 20. Kb2 {[%clk 0:02:07]}  Rc5 {[%clk 0:01:01]} 21. c4 {[%clk 0:02:04]}  Qb6+ {[%clk 0:00:53]} 22. Ka1 {[%clk 0:02:03]}  Rxc4 {[%clk 0:00:52]} 23. Rb1 {[%clk 0:01:52]}  Qc5 {[%clk 0:00:40]} 24. Rb2 {[%clk 0:01:32]}  b6 {[%clk 0:00:36]} 25. Qh6+ {[%clk 0:01:31]}  Kf7 {[%clk 0:00:36]} 26. g5 {[%clk 0:01:31]}  Nh5 {[%clk 0:00:35]} 27. f4 {[%clk 0:00:57]}  Rxc2 {[%clk 0:00:31]} 28. Qh7+ {[%clk 0:00:40]}  Ng7 {[%clk 0:00:31]} 29. f5 {[%clk 0:00:24]}  Rc1+ {[%clk 0:00:26]} 30. Rxc1 {[%clk 0:00:23]}  Qxc1+ {[%clk 0:00:26]} 31. Rb1 {[%clk 0:00:23]}  Qc3+ {[%clk 0:00:26]} 32. Rb2 {[%clk 0:00:24]}  Qc1+ {[%clk 0:00:14]} 33. Rb1 {[%clk 0:00:24]}  Qc3+ {[%clk 0:00:12]} 34. Rb2 {[%clk 0:00:24]}  Qe1+ {[%clk 0:00:12]} 35. Rb1 {[%clk 0:00:24]}  Qc3+ {[%clk 0:00:12]} 1/2-1/2


[Site "https://www.chess.com"]